bitfinex/quotes_SOLUSD_20240621
["timestamp","ask_amount","ask_price","bid_price","bid_amount"]
[1718953748820,0.17,132.71,132.68,0.8317006]
[1718953750435,9.71,132.71,132.68,0.8317006]
[1718953750618,9.54,132.71,132.68,0.8317006]
[1718953750812,0.17,132.72,132.68,0.8317006]
[1718953751013,10.05,132.72,132.68,0.8317006]
[1718953751228,9.54,132.72,132.68,0.8317006]
[1718953751428,9.54,132.73,132.68,0.8317006]
[1718953752322,9.54,132.72,132.68,0.8317006]
[1718953754538,6.05017447,132.75,132.68,10.3717006]
[1718953754838,9.54,132.74,132.69,29.54]
[1718953755537,9.54,132.73,132.69,20.0]
[1718953756236,0.17,132.72,132.69,20.0]
[1718953756542,10.05,132.72,132.68,20.8317006]
[1718953756741,10.05,132.72,132.68,0.8317006]
[1718953756943,10.05,132.72,132.68,20.8317006]
[1718953762443,9.54,132.71,132.68,20.8317006]
[1718953762942,0.51,132.72,132.68,20.8317006]
[1718953763139,0.51,132.72,132.68,30.3717006]
[1718953763532,0.51,132.72,132.68,20.8317006]
[1718953763853,0.51,132.72,132.68,30.3717006]
[1718953764723,0.17,132.72,132.68,30.3717006]
[1718953764922,9.54,132.73,132.68,30.3717006]
[1718953765329,9.54,132.72,132.68,20.8317006]
[1718953767336,9.54,132.73,132.68,20.8317006]
[1718953768350,9.54,132.73,132.68,30.3717006]
[1718953769026,28.56256984,132.76,132.69,9.54]
[1718953769232,9.54,132.74,132.7,20.0]
[1718953772339,9.54,132.74,132.68,20.8317006]
[1718953772538,9.54,132.74,132.69,9.54]
[1718953773048,9.54,132.74,132.7,20.0]
[1718953773846,9.71,132.73,132.7,20.0]
[1718953774152,9.54,132.73,132.68,30.3717006]
[1718953774453,9.54,132.73,132.68,20.8317006]
[1718953776143,0.17,132.72,132.68,20.8317006]
[1718953776449,9.54,132.71,132.68,0.8317006]
[1718953778438,0.51,132.7,132.68,0.8317006]
[1718953781457,0.17,132.7,132.68,0.8317006]
[1718953781649,9.54,132.71,132.68,0.8317006]
[1718953782461,0.51,132.72,132.68,0.8317006]
[1718953782462,10.05,132.72,132.68,0.8317006]
[1718953783647,0.17,132.72,132.68,0.8317006]
[1718953783859,9.54,132.73,132.68,10.3717006]
[1718953784558,9.54,132.72,132.68,0.8317006]
[1718953784758,9.54,132.71,132.68,0.8317006]
[1718953785143,9.88,132.72,132.68,0.8317006]
[1718953787951,0.17,132.74,132.68,10.3717006]
[1718953788282,9.54,132.74,132.68,10.3717006]
[1718953788461,9.71,132.73,132.68,10.3717006]
[1718953788667,9.54,132.73,132.68,0.8317006]
[1718953788855,9.54,132.73,132.68,20.8317006]
[1718953789056,9.54,132.73,132.68,30.3717006]
[1718953797370,9.54,132.73,132.68,20.8317006]
[1718953797553,9.54,132.73,132.68,0.8317006]
[1718953797751,9.54,132.72,132.68,20.8317006]
[1718953799176,9.54,132.73,132.68,20.8317006]
[1718953799564,0.17,132.72,132.68,20.8317006]
[1718953799764,9.88,132.72,132.68,20.8317006]
[1718953800472,0.17,132.72,132.68,20.8317006]
[1718953800673,9.54,132.73,132.68,30.3717006]
[1718953803676,9.88,132.74,132.68,30.3717006]
[1718953804074,9.88,132.74,132.68,46.5989006]
[1718953804591,5.99126984,132.76,132.69,6.2191]
[1718953804796,29.86557511,132.82,132.72,9.54]
[1718953804957,9.54,132.79,132.74,9.54]
[1718953805155,21.8232,132.82,132.72,15.1517]
[1718953805156,9.54,132.78,132.72,15.1517]
[1718953805351,9.54,132.78,132.73,20.0]
[1718953805571,9.54,132.76,132.73,20.0]
[1718953806758,9.71,132.77,132.73,20.0]
[1718953807980,9.54,132.76,132.73,20.0]
[1718953808367,0.17,132.77,132.73,20.0]
[1718953808368,9.71,132.77,132.73,20.0]
[1718953808676,9.54,132.76,132.73,20.0]
[1718953809777,9.54,132.75,132.69,6.2191]
[1718953809973,9.54,132.74,132.7,20.0]
[1718953811362,0.34,132.75,132.7,20.0]
[1718953811560,9.71,132.75,132.7,29.54]
[1718953811759,6.12241175,132.77,132.7,20.0]
[1718953812085,21.8232,132.82,132.74,9.54]
[1718953812086,9.54,132.79,132.74,9.54]
[1718953812387,15.61263111,132.81,132.76,9.54]
[1718953812564,9.54,132.81,132.76,9.54]
[1718953813370,254.90058597,132.84,132.76,9.54]
[1718953813780,9.54,132.81,132.76,9.54]
[1718953814079,261.01874815,132.84,132.76,9.54]
[1718953814282,261.01874815,132.84,132.79,9.54]
[1718953814487,270.55874815,132.84,132.79,9.54]
[1718953815473,0.17,132.83,132.79,9.54]
[1718953815872,254.90058597,132.84,132.8,9.54]
[1718953816274,9.54,132.85,132.8,9.54]
[1718953817386,0.34,132.84,132.8,9.54]
[1718953819795,0.17,132.83,132.79,9.54]
[1718953819975,0.17,132.83,132.8,20.0]
[1718953820475,9.54,132.82,132.77,15.5656]
[1718953820685,9.54,132.82,132.78,20.0]
[1718953821390,9.54,132.81,132.77,6.0256]
[1718953822294,9.54,132.81,132.76,16.3953]
[1718953822499,9.54,132.81,132.77,20.0]
[1718953824675,9.88,132.82,132.77,29.54]
[1718953825204,0.34,132.82,132.77,29.54]
[1718953825380,0.34,132.82,132.78,9.54]
[1718953825576,0.34,132.82,132.77,20.0]
[1718953825577,6.01936861,132.86,132.79,9.54]
[1718953825779,21.442,132.89,132.77,20.0]
[1718953825780,9.54,132.85,132.8,9.54]
[1718953825983,21.442,132.89,132.8,9.54]
[1718953826195,9.54,132.85,132.8,9.54]
[1718953826997,0.34,132.84,132.8,9.54]
[1718953828601,9.88,132.84,132.79,9.54]
[1718953828785,9.88,132.84,132.78,9.54]
[1718953828984,9.88,132.84,132.79,20.0]
[1718953829901,9.54,132.8,132.76,16.3953]
[1718953830204,0.17,132.79,132.76,16.3953]
[1718953830504,9.54,132.8,132.76,16.3953]
[1718953830685,0.17,132.79,132.76,16.3953]
[1718953831492,0.34,132.81,132.76,25.9353]
[1718953831689,0.17,132.81,132.76,25.9353]
[1718953832401,0.17,132.81,132.77,9.54]
[1718953833107,0.34,132.81,132.76,25.9353]
[1718953833301,0.17,132.8,132.76,25.9353]
[1718953834783,0.17,132.8,132.76,16.3953]
[1718953834987,9.71,132.8,132.76,16.3953]
[1718953835691,9.71,132.8,132.75,9.54]
[1718953835882,9.71,132.8,132.76,20.0]
[1718953836886,9.88,132.79,132.74,29.54]
[1718953837100,0.17,132.78,132.74,29.54]
[1718953837304,0.17,132.78,132.75,9.54]
[1718953837888,9.54,132.8,132.75,9.54]
[1718953838088,9.54,132.8,132.74,20.0]
[1718953838089,0.17,132.81,132.76,9.54]
[1718953838309,9.71,132.81,132.76,9.54]
[1718953838511,0.17,132.81,132.77,9.54]
[1718953839206,0.17,132.81,132.74,20.0]
[1718953839398,0.17,132.81,132.77,9.54]
[1718953841608,9.71,132.81,132.76,9.54]
[1718953841789,9.88,132.8,132.75,9.54]
[1718953841990,9.88,132.79,132.74,29.54]
[1718953842202,9.54,132.79,132.74,29.54]
[1718953843704,0.34,132.8,132.76,9.54]
[1718953843911,9.71,132.81,132.76,9.54]
[1718953844285,0.17,132.81,132.76,9.54]
[1718953844490,0.34,132.81,132.76,9.54]
[1718953844704,9.88,132.81,132.76,9.54]
[1718953845298,0.17,132.81,132.76,9.54]
[1718953845505,9.54,132.83,132.77,9.54]
[1718953845705,0.17,132.82,132.77,9.54]
[1718953846812,0.34,132.82,132.77,9.54]
[1718953848919,0.34,132.82,132.78,9.54]
[1718953849210,6.17456742,132.84,132.8,9.54]
[1718953849512,254.90058597,132.91,132.81,20.0]
[1718953849718,254.90058597,132.91,132.84,9.54]
[1718953849719,9.54,132.89,132.84,9.54]
[1718953850097,405.0508,132.92,132.84,9.54]
[1718953850499,9.54,132.89,132.84,9.54]
[1718953851512,0.34,132.88,132.84,9.54]
[1718953852097,9.54,132.89,132.85,0.3633]
[1718953852299,405.0508,132.92,132.85,9.9033]
[1718953852616,9.54,132.9,132.85,9.9033]
[1718953853215,411.06152849,132.92,132.85,9.9033]
[1718953853413,9.54,132.9,132.85,0.3633]
[1718953853622,0.51,132.89,132.85,0.3633]
[1718953853801,0.17,132.89,132.85,9.9033]
[1718953854204,9.54,132.9,132.85,9.9033]
[1718953854401,0.34,132.91,132.86,9.54]
[1718953854402,10.05,132.91,132.86,9.54]
[1718953854608,0.17,132.9,132.86,9.54]
[1718953855519,0.17,132.9,132.85,9.9033]
[1718953856517,9.71,132.9,132.85,9.9033]
[1718953856824,0.17,132.9,132.85,0.3633]
[1718953857023,0.17,132.9,132.86,9.54]
[1718953857202,9.71,132.9,132.85,0.3633]
[1718953857406,9.71,132.9,132.85,9.9033]
[1718953860407,9.71,132.9,132.86,9.54]
[1718953860729,0.17,132.9,132.86,9.54]
[1718953862127,0.34,132.91,132.87,9.54]
[1718953862327,21.4176,132.95,132.88,9.54]
[1718953862513,21.4176,132.95,132.89,9.54]
[1718953862822,9.54,132.94,132.86,6.2191]
[1718953863020,9.54,132.92,132.87,20.0]
[1718953864006,0.17,132.91,132.87,20.0]
[1718953864222,0.51,132.91,132.87,20.0]
[1718953866815,9.54,132.88,132.85,0.3633]
[1718953867143,0.17,132.87,132.85,0.3633]
[1718953867430,9.54,132.86,132.85,0.3633]
[1718953867641,9.88,132.86,132.85,0.3633]
[1718953867936,10.05,132.86,132.85,0.3633]
[1718953869932,0.51,132.86,132.85,0.3633]
[1718953870240,0.17,132.86,132.85,0.3633]
[1718953870452,9.54,132.88,132.85,0.3633]
[1718953870620,0.17,132.87,132.85,0.3633]
[1718953870938,0.17,132.88,132.85,0.3633]
[1718953871327,9.71,132.88,132.85,0.3633]
[1718953872452,0.17,132.87,132.85,0.3633]
[1718953873027,9.54,132.86,132.85,0.3633]
[1718953873346,10.05,132.86,132.85,0.3633]
[1718953875334,64.59,132.86,132.85,0.3633]
[1718953877249,45.51,132.86,132.85,0.3633]
[1718953882437,284.27917777,132.9,132.85,0.3633]
[1718953882634,276.43348597,132.9,132.85,0.3633]
[1718953883853,45.17,132.89,132.85,0.3633]
[1718953884060,0.34,132.88,132.85,0.3633]
[1718953884255,0.17,132.87,132.85,0.3633]
[1718953891560,45.17,132.87,132.85,0.3633]
[1718953891879,0.34,132.86,132.85,0.3633]
[1718953892056,0.51,132.86,132.85,0.3633]
[1718953894958,254.90058597,132.9,132.85,0.3633]
[1718953896586,6.3121,132.93,132.85,0.3633]
[1718953897309,45.51,132.92,132.85,0.3633]
[1718953898704,45.01,132.92,132.85,0.3633]
[1718953899376,9.54,132.89,132.85,0.3633]
[1718953899699,9.54,132.88,132.85,0.3633]
[1718953900284,9.54,132.87,132.85,0.3633]
[1718953900489,45.01,132.92,132.85,0.3633]
[1718953900490,9.54,132.86,132.85,0.3633]
[1718953901499,9.88,132.86,132.85,0.3633]
[1718953902005,10.05,132.86,132.85,0.3633]
[1718953905689,0.51,132.86,132.85,0.3633]
[1718953906006,10.05,132.86,132.85,0.3633]
[1718953909088,19.59,132.86,132.85,0.3633]
[1718953909490,10.05,132.86,132.85,0.3633]
[1718953915401,0.51,132.86,132.85,0.3633]
[1718953915600,10.05,132.86,132.85,0.3633]
[1718953921729,10.05,132.86,132.81,16.5593]
[1718953921894,0.51,132.85,132.81,16.5593]
[1718953922102,9.54,132.83,132.81,16.5593]
[1718953922431,0.34,132.82,132.79,6.0406]
[1718953922597,0.34,132.82,132.77,15.2374]
[1718953922806,9.71,132.81,132.77,15.2374]
[1718953923511,9.54,132.8,132.77,15.2374]
[1718953924930,0.17,132.81,132.77,15.2374]
[1718953925124,9.54,132.8,132.77,15.2374]
[1718953925801,9.71,132.81,132.77,15.2374]
[1718953928119,0.34,132.82,132.77,24.7774]
[1718953928337,9.71,132.82,132.77,24.7774]
[1718953928541,0.17,132.82,132.77,24.7774]
[1718953929122,0.17,132.83,132.77,15.2374]
[1718953929321,9.54,132.84,132.79,9.54]
[1718953929516,12.40544784,132.88,132.79,9.54]
[1718953929821,9.54,132.85,132.79,9.54]
[1718953930021,12.40544784,132.88,132.79,9.54]
[1718953930222,9.54,132.85,132.8,29.54]
[1718953930434,9.54,132.85,132.81,20.0]
[1718953930737,9.71,132.86,132.81,20.0]
[1718953931041,0.34,132.85,132.81,20.0]
[1718953933242,9.88,132.85,132.8,29.54]
[1718953933626,9.88,132.85,132.8,20.0]
[1718953934637,9.71,132.84,132.8,20.0]
[1718953934856,0.17,132.83,132.8,20.0]
[1718953938464,9.54,132.84,132.81,15.084]
[1718953938626,6.08534784,132.88,132.82,9.54]
[1718953938821,9.54,132.88,132.83,9.54]
[1718953939823,0.34,132.87,132.83,9.54]
[1718953940649,0.34,132.87,132.82,9.54]
[1718953942525,0.34,132.87,132.83,9.54]
[1718953942851,6.03150199,132.89,132.85,9.54]
[1718953943055,9.54,132.91,132.85,9.54]
[1718953943222,22.7467,132.92,132.85,9.54]
[1718953943223,9.54,132.9,132.85,9.54]
[1718953943421,22.7467,132.92,132.84,20.0]
[1718953943753,9.54,132.87,132.82,29.54]
[1718953944119,0.51,132.86,132.82,29.54]
[1718953944847,9.54,132.87,132.82,29.54]
[1718953945426,0.17,132.86,132.82,29.54]
[1718953945628,9.71,132.86,132.82,20.0]
[1718953945827,0.17,132.85,132.82,20.0]
[1718953946450,9.71,132.85,132.82,20.0]
[1718953946747,0.17,132.84,132.82,20.0]
[1718953946956,0.17,132.84,132.8,29.54]
[1718953947759,0.17,132.85,132.81,9.54]
[1718953947939,0.34,132.85,132.81,9.54]
[1718953948954,0.17,132.88,132.82,9.54]
[1718953949158,9.88,132.87,132.82,9.54]
[1718953949450,0.17,132.86,132.82,9.54]
[1718953950642,0.17,132.86,132.8,20.0]
[1718953950838,9.71,132.86,132.81,9.54]
[1718953951038,9.71,132.86,132.82,20.0]
[1718953953668,0.34,132.87,132.82,20.0]
[1718953953838,0.34,132.87,132.83,9.54]
[1718953954159,5.93216751,132.88,132.83,9.54]
[1718953954347,9.54,132.89,132.84,20.0]
[1718953955658,22.7467,132.92,132.84,20.0]
[1718953955837,9.54,132.9,132.85,9.54]
[1718953956040,0.17,132.89,132.85,9.54]
[1718953956246,9.54,132.9,132.85,9.54]
[1718953956469,28.72921723,132.92,132.85,9.54]
[1718953956640,9.54,132.91,132.85,9.54]
[1718953957777,9.54,132.9,132.84,20.0]
[1718953958075,0.34,132.89,132.84,29.54]
[1718953958247,0.34,132.89,132.85,9.54]
[1718953958442,28.72921723,132.92,132.86,9.54]
[1718953958647,0.34,132.91,132.86,9.54]
[1718953959745,254.90058597,132.95,132.84,48.8491]
[1718953959953,22.0387,132.96,132.89,9.54]
[1718953960346,9.54,132.94,132.89,9.54]
[1718953964280,9.54,132.94,132.9,20.0]
[1718953964771,10.05,132.93,132.9,20.0]
[1718953965078,9.88,132.93,132.89,20.0]
[1718953970167,0.34,132.93,132.89,20.0]
[1718953970362,9.88,132.94,132.89,20.0]
[1718953971386,9.88,132.94,132.89,29.54]
[1718953976481,0.34,132.94,132.9,9.54]
[1718953979085,0.17,132.95,132.9,9.54]
[1718953979265,0.17,132.95,132.91,20.0]
[1718953979463,0.51,132.95,132.91,20.0]
[1718953979788,21.4748,132.99,132.92,9.54]
[1718953979972,9.54,132.97,132.92,9.54]
[1718953980172,9.54,132.98,132.93,20.0]
[1718953980773,9.54,132.97,132.93,20.0]
[1718953981581,0.17,132.98,132.93,20.0]
[1718953981780,9.54,132.97,132.93,20.0]
[1718953981977,0.34,132.98,132.93,20.0]
[1718953982283,9.54,132.97,132.93,20.0]
[1718953983384,0.51,132.98,132.89,6.2191]
[1718953983385,9.54,132.95,132.9,9.54]
[1718953983567,0.51,132.96,132.91,20.0]
[1718953983761,0.51,132.96,132.88,15.7103]
[1718953983762,9.54,132.93,132.88,15.7103]
[1718953984474,9.54,132.92,132.88,15.7103]
[1718953984874,9.54,132.92,132.89,20.0]
[1718953986014,9.88,132.94,132.89,20.0]
[1718953986187,9.71,132.94,132.89,29.54]
[1718953987293,9.71,132.94,132.89,20.0]
[1718953987683,9.54,132.93,132.89,20.0]
[1718953987995,9.54,132.91,132.85,6.2191]
[1718953988179,9.54,132.9,132.85,15.7591]
[1718953988378,0.51,132.92,132.86,20.0]
[1718953988581,9.54,132.89,132.86,20.0]
[1718953988981,9.54,132.89,132.85,20.0]
[1718953989203,9.54,132.9,132.85,20.0]
[1718953989376,9.54,132.9,132.85,29.54]
[1718953989577,9.54,132.9,132.85,20.0]
[1718953989877,0.51,132.92,132.85,20.0]
[1718953989878,9.54,132.88,132.85,20.0]
[1718953990394,0.34,132.89,132.85,20.0]
[1718953990607,9.54,132.88,132.85,20.0]
[1718953991902,9.88,132.89,132.85,20.0]
[1718953992481,0.34,132.89,132.85,20.0]
[1718953993594,9.88,132.89,132.85,20.0]
[1718953994102,0.34,132.89,132.85,20.0]
[1718953994311,9.88,132.89,132.85,20.0]
[1718953994701,0.34,132.89,132.85,29.54]
[1718953995507,0.17,132.92,132.85,29.54]
[1718953995800,9.54,132.91,132.86,9.54]
[1718953996013,9.54,132.92,132.87,20.0]
[1718953996199,10.05,132.91,132.87,20.0]
[1718953996407,9.71,132.91,132.87,20.0]
[1718953996593,9.54,132.9,132.87,20.0]
[1718953996791,9.54,132.9,132.86,20.0]
[1718953999204,9.88,132.91,132.86,20.0]
[1718953999403,28.4759558,132.94,132.86,29.54]
[1718953999709,28.4759558,132.94,132.87,9.54]
[1718953999710,9.54,132.92,132.87,9.54]
[1718953999911,0.17,132.91,132.86,29.54]
[1718954000411,0.17,132.91,132.87,9.54]
[1718954000597,5.9649558,132.94,132.88,29.54]
[1718954000793,9.88,132.93,132.88,9.54]
[1718954000997,9.88,132.93,132.89,20.0]
[1718954001297,0.34,132.93,132.89,20.0]
[1718954001814,9.88,132.93,132.89,20.0]
[1718954003220,0.34,132.93,132.89,20.0]
[1718954003609,9.88,132.93,132.89,20.0]
[1718954005605,282.36116051,132.97,132.89,20.0]
[1718954005805,9.54,132.93,132.89,20.0]
[1718954007232,282.36116051,132.97,132.89,35.7765]
[1718954007404,9.54,132.96,132.91,9.54]
[1718954008523,0.51,132.95,132.91,9.54]
[1718954009236,10.05,132.95,132.9,9.54]
[1718954009731,10.05,132.95,132.89,45.3165]
[1718954012029,10.05,132.95,132.9,9.54]
[1718954012352,0.51,132.95,132.91,20.0]
[1718954012834,0.51,132.95,132.91,29.54]
[1718954014233,0.51,132.95,132.91,20.0]
[1718954014733,10.05,132.95,132.91,20.0]
[1718954015661,0.51,132.95,132.91,20.0]
[1718954016525,10.05,132.95,132.91,20.0]
[1718954019041,0.34,132.95,132.91,20.0]
[1718954019241,9.54,132.95,132.91,20.0]
[1718954019740,9.88,132.96,132.91,29.54]
[1718954019945,0.34,132.96,132.91,29.54]
[1718954020323,0.17,132.97,132.92,9.54]
[1718954020530,0.17,132.97,132.93,20.0]
[1718954022638,9.71,132.97,132.93,20.0]
[1718954023140,9.71,132.97,132.89,15.7765]
[1718954023141,9.71,132.97,132.92,9.54]
[1718954023320,9.71,132.97,132.93,20.0]
[1718954024523,0.17,132.97,132.93,20.0]
[1718954024716,9.71,132.97,132.93,20.0]
[1718954030825,0.17,132.96,132.93,20.0]
[1718954031140,9.54,132.95,132.9,29.54]
[1718954031340,0.34,132.94,132.9,29.54]
[1718954031546,0.34,132.94,132.9,20.0]
[1718954031720,9.88,132.94,132.9,20.0]
[1718954032743,0.34,132.94,132.9,20.0]
[1718954033046,9.54,132.94,132.9,20.0]
[1718954033345,0.34,132.95,132.9,20.0]
[1718954033547,0.17,132.94,132.9,20.0]
[1718954033729,9.71,132.94,132.9,20.0]
[1718954039154,0.17,132.94,132.9,20.0]
[1718954041432,0.17,132.94,132.91,20.0]
[1718954042045,0.17,132.94,132.9,20.0]
[1718954044381,0.17,132.94,132.86,6.0332]
[1718954044660,0.17,132.94,132.87,20.0]
[1718954044661,9.54,132.92,132.87,20.0]
[1718954044866,9.54,132.91,132.87,20.0]
[1718954045840,9.54,132.92,132.87,29.54]
[1718954046249,9.88,132.93,132.88,9.54]
[1718954046443,9.88,132.93,132.87,20.0]
[1718954046650,0.34,132.93,132.89,9.54]
[1718954046957,0.17,132.94,132.9,20.0]
[1718954047262,0.34,132.94,132.9,29.54]
[1718954047432,31.8564,132.95,132.9,29.54]
[1718954047859,22.3164,132.95,132.91,9.54]
[1718954048056,0.17,132.96,132.91,9.54]
[1718954048260,27.29801984,132.98,132.91,9.54]
[1718954048757,9.54,132.96,132.92,20.0]
[1718954048947,9.54,132.96,132.9,29.54]
[1718954049561,27.29801984,132.98,132.91,9.54]
[1718954049855,9.54,132.96,132.92,20.0]
[1718954050548,9.54,132.96,132.9,9.54]
[1718954050752,9.54,132.96,132.91,20.0]
[1718954052258,9.54,132.96,132.91,29.54]
[1718954053259,9.54,132.96,132.91,20.0]
[1718954054640,0.17,132.95,132.91,20.0]
[1718954054840,9.71,132.95,132.89,9.54]
[1718954055066,0.34,132.94,132.9,20.0]
[1718954055660,9.88,132.94,132.9,20.0]
[1718954055848,9.88,132.94,132.89,9.54]
[1718954056061,9.88,132.94,132.9,20.0]
[1718954059466,0.34,132.94,132.9,20.0]
[1718954059647,9.88,132.94,132.9,20.0]
[1718954059851,9.88,132.94,132.87,20.0]
[1718954060463,0.17,132.93,132.87,20.0]
[1718954060648,9.71,132.93,132.87,20.0]
[1718954060850,9.88,132.92,132.87,9.54]
[1718954061180,9.71,132.92,132.88,20.0]
[1718954061845,0.17,132.92,132.88,20.0]
[1718954062045,0.34,132.92,132.88,20.0]
[1718954063862,0.34,132.92,132.88,29.54]
[1718954065147,21.7491,132.94,132.88,29.54]
[1718954065364,21.7491,132.94,132.88,20.0]
[1718954065566,21.7491,132.94,132.9,9.54]
[1718954065773,22.6,132.97,132.91,29.54]
[1718954065974,9.54,132.96,132.91,29.54]
[1718954067262,0.34,132.95,132.91,29.54]
[1718954069171,22.6,132.97,132.92,9.54]
[1718954069470,9.54,132.98,132.93,29.54]
[1718954069856,22.1446,133.0,132.93,29.54]
[1718954070071,31.6846,133.0,132.93,20.0]
[1718954070281,31.6846,133.0,132.95,9.54]
[1718954070459,31.6846,133.0,132.96,9.54]
[1718954070460,22.1446,133.0,132.96,9.54]
[1718954070668,9.54,133.01,132.97,20.0]
[1718954071674,9.54,133.01,132.96,9.54]
[1718954071970,9.54,133.01,132.97,20.0]
[1718954072595,0.34,133.0,132.97,20.0]
[1718954072876,0.17,133.01,132.97,20.0]
[1718954073173,22.8664,133.03,132.99,9.54]
[1718954073373,22.8664,133.03,132.95,38.6635]
[1718954073374,22.8664,133.03,133.0,20.0]
[1718954073780,32.4064,133.03,133.0,20.0]
[1718954074167,32.4064,133.03,132.98,9.54]
[1718954074355,22.8664,133.03,132.99,29.54]
[1718954074561,22.8664,133.03,132.99,20.0]
[1718954074778,22.8664,133.03,132.99,29.54]
[1718954077874,0.17,133.02,132.99,20.0]
[1718954078072,0.34,133.02,132.98,9.54]
[1718954078265,0.34,133.02,132.99,20.0]
[1718954080585,0.34,133.02,132.98,9.54]
[1718954080771,32.4064,133.03,132.99,20.0]
[1718954081771,9.54,133.02,132.97,9.54]
[1718954081980,9.54,133.02,132.98,20.0]
[1718954083984,32.4064,133.03,132.98,29.54]
[1718954084184,0.34,133.02,132.98,29.54]
[1718954087181,22.8664,133.03,132.98,29.54]
[1718954087361,32.4064,133.03,132.98,29.54]
[1718954089185,22.8664,133.03,132.98,20.0]
[1718954089366,22.8664,133.03,132.99,9.54]
[1718954089568,22.8664,133.03,133.0,20.0]
[1718954089765,22.8664,133.03,132.99,9.54]
[1718954089991,22.8664,133.03,133.0,20.0]
[1718954090187,22.8664,133.03,133.0,29.54]
[1718954090895,6.16962641,133.05,133.0,29.54]
[1718954091205,0.8099512,133.07,133.03,9.54]
[1718954092188,0.8099512,133.07,133.06,9.54]
[1718954092493,0.8099512,133.07,133.06,29.54]
[1718954092683,0.8099512,133.07,133.06,20.0]
[1718954095074,0.8099512,133.07,133.05,20.0]
[1718954095495,0.8099512,133.07,133.04,20.0]
[1718954095710,22.307,133.06,132.88,16.054]
[1718954095877,9.54,132.97,132.92,9.54]
[1718954096493,30.0,132.96,132.92,9.54]
[1718954096695,30.0,132.96,132.88,16.054]
[1718954096907,30.0,132.96,132.92,9.54]
[1718954097504,30.0,132.96,132.89,22.64]
[1718954098495,30.0,132.96,132.9,20.0]
[1718954099194,30.0,132.96,132.89,42.64]
[1718954099593,30.0,132.96,132.89,20.0]
[1718954100203,30.0,132.96,132.89,42.64]
[1718954100709,30.0,132.96,132.88,16.054]
[1718954100994,30.0,132.96,132.9,45.0]